[Event "Live Chess"]
[Site "Chess.com"]
[Date "2024.06.02"]
[Round "-"]
[White "koekoekoe"]
[Black "EPotapov05"]
[Result "1-0"]
[WhiteElo "1966"]
[BlackElo "1805"]
[TimeControl "300"]
[EndTime "16:08:40 PDT"]
[Termination "koekoekoe won by checkmate"]

1. d4 {[%clk 0:04:58.9]} 1... d5 {[%clk 0:04:56.1]} 2. Bf4 {[%clk 0:04:58.4]}
2... Nf6 {[%clk 0:04:54.1]} 3. e3 {[%clk 0:04:55.8]} 3... c6 {[%clk 0:04:53.2]}
4. c4 {[%clk 0:04:55.1]} 4... Bf5 {[%clk 0:04:51.2]} 5. Nc3 {[%clk 0:04:54.5]}
5... e6 {[%clk 0:04:50.3]} 6. Nf3 {[%clk 0:04:53.2]} 6... Bd6 {[%clk 0:04:46.3]}
7. Bg3 {[%clk 0:04:52.2]} 7... Bxg3 {[%clk 0:04:44.5]} 8. hxg3 {[%clk
0:04:52.1]} 8... h6 {[%clk 0:04:43.7]} 9. Be2 {[%clk 0:04:50.8]} 9... Nbd7
{[%clk 0:04:42.2]} 10. O-O {[%clk 0:04:50.1]} 10... O-O {[%clk 0:04:40.9]} 11.
Rc1 {[%clk 0:04:44.1]} 11... Qe7 {[%clk 0:04:36.9]} 12. b4 {[%clk 0:04:39.6]}
12... dxc4 {[%clk 0:04:29.8]} 13. Bxc4 {[%clk 0:04:37.6]} 13... e5 {[%clk
0:04:25.9]} 14. dxe5 {[%clk 0:04:33]} 14... Nxe5 {[%clk 0:04:24.8]} 15. Nxe5
{[%clk 0:04:30.1]} 15... Qxe5 {[%clk 0:04:23.8]} 16. Qb3 {[%clk 0:04:27.3]}
16... Rad8 {[%clk 0:04:07.8]} 17. Rfd1 {[%clk 0:04:25.5]} 17... Rxd1+ {[%clk
0:04:01.5]} 18. Rxd1 {[%clk 0:04:25.4]} 18... Ne4 {[%clk 0:03:59.3]} 19. Nxe4
{[%clk 0:04:22.7]} 19... Bxe4 {[%clk 0:03:53.9]} 20. Rd7 {[%clk 0:04:11.4]}
20... b5 {[%clk 0:03:48.6]} 21. Bxf7+ {[%clk 0:03:52]} 21... Kh8 {[%clk
0:03:33.5]} 22. Bh5 {[%clk 0:03:49.8]} 22... Qxh5 {[%clk 0:03:23.6]} 23. Qe6
{[%clk 0:03:46.2]} 23... Bd5 {[%clk 0:02:48.1]} 24. Qe7 {[%clk 0:03:36.9]} 24...
Qf7 {[%clk 0:02:35.6]} 25. Qd6 {[%clk 0:03:17.2]} 25... Qe6 {[%clk 0:02:29.3]}
26. Qxf8+ {[%clk 0:03:12.3]} 26... Kh7 {[%clk 0:02:24.8]} 27. Qxg7# {[%clk
0:03:09.3]} 1-0

[Event "Live Chess"]
[Site "Chess.com"]
[Date "2024.06.02"]
[Round "-"]
[White "gobbles19"]
[Black "grillage"]
[Result "1-0"]
[WhiteElo "2278"]
[BlackElo "1865"]
[TimeControl "300"]
[EndTime "16:08:41 PDT"]
[Termination "gobbles19 won by resignation"]

1. e4 {[%clk 0:04:56.8]} 1... d5 {[%clk 0:04:58.4]} 2. exd5 {[%clk 0:04:52.9]}
2... Qxd5 {[%clk 0:04:57.5]} 3. Nc3 {[%clk 0:04:52.2]} 3... Qd8 {[%clk
0:04:54.3]} 4. d4 {[%clk 0:04:51.7]} 4... Nf6 {[%clk 0:04:53.1]} 5. Bc4 {[%clk
0:04:51.2]} 5... a6 {[%clk 0:04:50.5]} 6. a4 {[%clk 0:04:49.3]} 6... Nc6 {[%clk
0:04:48.9]} 7. Nf3 {[%clk 0:04:48]} 7... Bg4 {[%clk 0:04:43.6]} 8. Be3 {[%clk
0:04:47.1]} 8... e6 {[%clk 0:04:31]} 9. h3 {[%clk 0:04:46]} 9... Bh5 {[%clk
0:04:21.8]} 10. g4 {[%clk 0:04:45]} 10... Bg6 {[%clk 0:04:20.7]} 11. Bd3 {[%clk
0:04:33]} 11... Bxd3 {[%clk 0:04:17.8]} 12. Qxd3 {[%clk 0:04:32.9]} 12... Nb4
{[%clk 0:04:05.9]} 13. Qe2 {[%clk 0:04:26.7]} 13... Nbd5 {[%clk 0:04:04]} 14.
O-O {[%clk 0:04:16.7]} 14... Nxe3 {[%clk 0:03:58.4]} 15. fxe3 {[%clk 0:04:16.6]}
15... c6 {[%clk 0:03:54.3]} 16. Ne5 {[%clk 0:04:14.1]} 16... h6 {[%clk
0:03:17.8]} 17. Qf3 {[%clk 0:04:03.3]} 17... Bd6 {[%clk 0:03:09.7]} 18. Rad1
{[%clk 0:03:58]} 18... Qc7 {[%clk 0:03:04.4]} 19. Nc4 {[%clk 0:03:51.3]} 19...
O-O {[%clk 0:02:56.1]} 20. Nxd6 {[%clk 0:03:49.6]} 20... Qxd6 {[%clk 0:02:55.4]}
21. e4 {[%clk 0:03:47.5]} 21... Rad8 {[%clk 0:02:48.4]} 22. e5 {[%clk
0:03:43.8]} 22... Qb4 {[%clk 0:02:41.7]} 23. exf6 {[%clk 0:03:41]} 23... Qxb2
{[%clk 0:02:39.1]} 24. fxg7 {[%clk 0:03:37.1]} 1-0

[Event "Live Chess"]
[Site "Chess.com"]
[Date "2024.06.02"]
[Round "-"]
[White "JanMur7"]
[Black "Dhaydon19"]
[Result "0-1"]
[WhiteElo "2306"]
[BlackElo "2675"]
[TimeControl "300"]
[EndTime "16:08:51 PDT"]
[Termination "Dhaydon19 won by resignation"]

1. c4 {[%clk 0:04:57.5]} 1... e6 {[%clk 0:04:59.7]} 2. Nc3 {[%clk 0:04:56.3]}
2... d5 {[%clk 0:04:55.8]} 3. d4 {[%clk 0:04:55.5]} 3... Nf6 {[%clk 0:04:51.7]}
4. cxd5 {[%clk 0:04:54.6]} 4... exd5 {[%clk 0:04:50.6]} 5. Bg5 {[%clk
0:04:54.2]} 5... c6 {[%clk 0:04:50.3]} 6. e3 {[%clk 0:04:52.5]} 6... Be7 {[%clk
0:04:49.3]} 7. Nf3 {[%clk 0:04:51.9]} 7... O-O {[%clk 0:04:48.6]} 8. Bd3 {[%clk
0:04:51.4]} 8... Nbd7 {[%clk 0:04:47]} 9. O-O {[%clk 0:04:49.6]} 9... Re8 {[%clk
0:04:46.6]} 10. h3 {[%clk 0:04:45.6]} 10... Nf8 {[%clk 0:04:46.2]} 11. Ne5
{[%clk 0:04:44.3]} 11... Ng6 {[%clk 0:04:45.1]} 12. f4 {[%clk 0:04:42.9]} 12...
Nd7 {[%clk 0:04:35.5]} 13. Bxe7 {[%clk 0:04:36.2]} 13... Qxe7 {[%clk 0:04:32.8]}
14. Qf3 {[%clk 0:04:19.1]} 14... Ndf8 {[%clk 0:04:29.2]} 15. Rf2 {[%clk
0:04:02.3]} 15... f6 {[%clk 0:04:26.3]} 16. Nxg6 {[%clk 0:03:58.3]} 16... hxg6
{[%clk 0:04:14.8]} 17. Re1 {[%clk 0:03:54.3]} 17... f5 {[%clk 0:04:09]} 18. g4
{[%clk 0:03:40.2]} 18... Nh7 {[%clk 0:04:02.8]} 19. g5 {[%clk 0:03:38.6]} 19...
Nf8 {[%clk 0:03:59.6]} 20. h4 {[%clk 0:03:33.7]} 20... Be6 {[%clk 0:03:57.5]}
21. Rh2 {[%clk 0:03:31]} 21... Bf7 {[%clk 0:03:55.9]} 22. a3 {[%clk 0:03:28.8]}
22... Ne6 {[%clk 0:03:54.5]} 23. Ree2 {[%clk 0:03:18.9]} 23... Qd6 {[%clk
0:03:50.5]} 24. h5 {[%clk 0:03:11.8]} 24... gxh5 {[%clk 0:03:48.6]} 25. Bxf5
{[%clk 0:03:10.1]} 25... g6 {[%clk 0:03:47.6]} 26. Bd3 {[%clk 0:03:07.3]} 26...
Ng7 {[%clk 0:03:44.2]} 27. Na4 {[%clk 0:02:57]} 27... Re7 {[%clk 0:03:40]} 28.
Bc2 {[%clk 0:02:49.6]} 28... Be6 {[%clk 0:03:37.8]} 29. Nc5 {[%clk 0:02:47.7]}
29... Bg4 {[%clk 0:03:36.4]} 30. Qf2 {[%clk 0:02:40.6]} 30... Bxe2 {[%clk
0:03:35.2]} 31. Qxe2 {[%clk 0:02:40.5]} 31... Ne6 {[%clk 0:03:22.7]} 32. Nxe6
{[%clk 0:02:14]} 32... Qxe6 {[%clk 0:03:20.4]} 33. Kf2 {[%clk 0:02:08.7]} 33...
Rf8 {[%clk 0:03:18.7]} 34. Qd3 {[%clk 0:02:01]} 34... Rg7 {[%clk 0:03:07.6]} 35.
b4 {[%clk 0:01:47.8]} 35... a6 {[%clk 0:03:05.5]} 36. Qf1 {[%clk 0:01:24.4]}
36... Qg4 {[%clk 0:02:53.1]} 37. Qh3 {[%clk 0:01:20.4]} 37... Qxg5 {[%clk
0:02:43.1]} 38. Qe6+ {[%clk 0:01:16.9]} 38... Kh7 {[%clk 0:02:41.7]} 39. Qd6
{[%clk 0:00:54.8]} 39... Rff7 {[%clk 0:02:32.2]} 40. Rg2 {[%clk 0:00:25]} 40...
Qh4+ {[%clk 0:02:29.9]} 41. Kf1 {[%clk 0:00:24.3]} 41... Qf6 {[%clk 0:02:29.6]}
42. Qxf6 {[%clk 0:00:22.1]} 42... Rxf6 {[%clk 0:02:28.2]} 43. Rg5 {[%clk
0:00:22]} 43... Kh6 {[%clk 0:02:27.6]} 44. Kf2 {[%clk 0:00:20.9]} 44... Re7
{[%clk 0:02:26.9]} 45. Rg3 {[%clk 0:00:19.8]} 45... Rfe6 {[%clk 0:02:24.6]} 46.
a4 {[%clk 0:00:16.8]} 46... Rg7 {[%clk 0:02:22.1]} 47. Bd3 {[%clk 0:00:15.6]}
47... g5 {[%clk 0:02:21.4]} 48. f5 {[%clk 0:00:14.9]} 48... Rf6 {[%clk
0:02:19.8]} 49. Rg1 {[%clk 0:00:14.8]} 49... g4 {[%clk 0:02:19.1]} 50. Kg3
{[%clk 0:00:13.9]} 50... Kg5 {[%clk 0:02:18.7]} 51. Rh1 {[%clk 0:00:13.2]} 51...
Re7 {[%clk 0:02:17.4]} 0-1

[Event "Live Chess"]
[Site "Chess.com"]
[Date "2024.06.02"]
[Round "-"]
[White "vincents82"]
[Black "WelshTiger"]
[Result "1/2-1/2"]
[WhiteElo "2051"]
[BlackElo "2476"]
[TimeControl "300"]
[EndTime "16:09:06 PDT"]
[Termination "Game drawn by agreement"]

1. e4 {[%clk 0:04:52.4]} 1... c5 {[%clk 0:04:57.8]} 2. Nf3 {[%clk 0:04:51.2]}
2... d6 {[%clk 0:04:57.2]} 3. d4 {[%clk 0:04:50.7]} 3... cxd4 {[%clk 0:04:56.6]}
4. Nxd4 {[%clk 0:04:50.3]} 4... Nf6 {[%clk 0:04:54.8]} 5. f3 {[%clk 0:04:49.8]}
5... e5 {[%clk 0:04:50]} 6. Nb3 {[%clk 0:04:48.7]} 6... d5 {[%clk 0:04:36.9]} 7.
Bg5 {[%clk 0:04:45.3]} 7... d4 {[%clk 0:04:34.3]} 8. c3 {[%clk 0:04:44.2]} 8...
Nc6 {[%clk 0:04:30.3]} 9. cxd4 {[%clk 0:04:40.2]} 9... Bb4+ {[%clk 0:04:27.9]}
10. Nc3 {[%clk 0:04:31.7]} 10... Nxd4 {[%clk 0:04:10.9]} 11. Nxd4 {[%clk
0:04:13.8]} 11... Qxd4 {[%clk 0:04:05.8]} 12. Qxd4 {[%clk 0:04:10.5]} 12... exd4
{[%clk 0:04:05]} 13. a3 {[%clk 0:04:07.6]} 13... dxc3 {[%clk 0:03:43.5]} 14.
axb4 {[%clk 0:04:05.2]} 14... cxb2 {[%clk 0:03:43.4]} 15. Rb1 {[%clk 0:04:01.4]}
15... a5 {[%clk 0:03:41.6]} 16. Bxf6 {[%clk 0:03:57.8]} 16... gxf6 {[%clk
0:03:40.3]} 17. Bb5+ {[%clk 0:03:56.5]} 17... Bd7 {[%clk 0:03:38.6]} 18. Bxd7+
{[%clk 0:03:55.1]} 18... Kxd7 {[%clk 0:03:38.1]} 19. bxa5 {[%clk 0:03:52.5]}
19... Rxa5 {[%clk 0:03:34.9]} 20. Ke2 {[%clk 0:03:50.4]} 20... Ra2 {[%clk
0:03:31.2]} 21. Rhd1+ {[%clk 0:03:47.2]} 21... Ke6 {[%clk 0:03:30.2]} 22. Rd2
{[%clk 0:03:46.2]} 22... b5 {[%clk 0:03:25.8]} 23. Rdxb2 {[%clk 0:03:44.9]}
23... Rxb2+ {[%clk 0:03:25.1]} 24. Rxb2 {[%clk 0:03:44.4]} 24... Rb8 {[%clk
0:03:24.8]} 25. Rb4 {[%clk 0:03:42.7]} 25... Kd6 {[%clk 0:03:23.5]} 26. Kd3
{[%clk 0:03:38.9]} 26... Kc5 {[%clk 0:03:22.6]} 27. Rb3 {[%clk 0:03:37.8]} 27...
b4 {[%clk 0:03:21]} 28. Rb1 {[%clk 0:03:30.7]} 28... Ra8 {[%clk 0:03:19.8]} 29.
Rc1+ {[%clk 0:03:28.3]} 29... Kb5 {[%clk 0:03:19]} 30. Rc7 {[%clk 0:03:21.6]}
30... Ra3+ {[%clk 0:02:58.9]} 31. Kc2 {[%clk 0:03:20.1]} 31... Ra2+ {[%clk
0:02:57.9]} 32. Kb3 {[%clk 0:03:19.3]} 32... Rxg2 {[%clk 0:02:56.4]} 33. Rxf7
{[%clk 0:03:13.8]} 33... Rxh2 {[%clk 0:02:51.2]} 34. Rxf6 {[%clk 0:03:11.5]}
34... Kc5 {[%clk 0:02:50.4]} 35. Rf5+ {[%clk 0:03:09.7]} 35... Kd4 {[%clk
0:02:48.7]} 36. Kxb4 {[%clk 0:03:07]} 36... h5 {[%clk 0:02:46.1]} 37. Rd5+
{[%clk 0:03:04.2]} 37... Ke3 {[%clk 0:02:45.3]} 38. e5 {[%clk 0:03:03.1]} 38...
Kxf3 {[%clk 0:02:43.8]} 39. e6 {[%clk 0:03:01.2]} 39... h4 {[%clk 0:02:27.4]}
40. Re5 {[%clk 0:02:54.8]} 40... Rb2+ {[%clk 0:02:25.8]} 41. Kc3 {[%clk
0:02:51.9]} 41... Rb8 {[%clk 0:02:24.4]} 42. e7 {[%clk 0:02:44.5]} 42... Re8
{[%clk 0:02:23.1]} 43. Kd3 {[%clk 0:02:39.4]} 43... h3 {[%clk 0:02:21.8]} 44.
Rf5+ {[%clk 0:02:13.4]} 44... Kg3 {[%clk 0:02:13.5]} 45. Rf7 {[%clk 0:02:12.3]}
45... h2 {[%clk 0:02:11]} 46. Rg7+ {[%clk 0:02:11.3]} 46... Kf2 {[%clk
0:02:10.2]} 47. Rf7+ {[%clk 0:02:09.7]} 47... Kg1 {[%clk 0:02:06.4]} 48. Rg7+
{[%clk 0:02:08.6]} 48... Kf1 {[%clk 0:02:05.5]} 49. Rf7+ {[%clk 0:02:07.7]}
49... Ke1 {[%clk 0:01:53.8]} 50. Rh7 {[%clk 0:02:01.7]} 50... Kf1 {[%clk
0:01:48.1]} 51. Rxh2 {[%clk 0:01:55.6]} 51... Rxe7 {[%clk 0:01:47.4]} 1/2-1/2

[Event "Live Chess"]
[Site "Chess.com"]
[Date "2024.06.02"]
[Round "-"]
[White "TedUdale"]
[Black "hapehansen"]
[Result "0-1"]
[WhiteElo "2104"]
[BlackElo "2248"]
[TimeControl "300"]
[EndTime "16:09:09 PDT"]
[Termination "hapehansen won by resignation"]

1. e4 {[%clk 0:04:56]} 1... c6 {[%clk 0:04:57]} 2. Nc3 {[%clk 0:04:54.6]} 2...
d5 {[%clk 0:04:56.1]} 3. exd5 {[%clk 0:04:53.6]} 3... cxd5 {[%clk 0:04:54.1]} 4.
d4 {[%clk 0:04:51.1]} 4... Nc6 {[%clk 0:04:51.4]} 5. Nf3 {[%clk 0:04:50]} 5...
Nf6 {[%clk 0:04:47.3]} 6. Bb5 {[%clk 0:04:45.7]} 6... Bd7 {[%clk 0:04:44.2]} 7.
O-O {[%clk 0:04:41.3]} 7... e6 {[%clk 0:04:41.4]} 8. Re1 {[%clk 0:04:22.3]} 8...
Be7 {[%clk 0:04:38]} 9. Bf4 {[%clk 0:04:13.1]} 9... O-O {[%clk 0:04:34.4]} 10.
a3 {[%clk 0:04:07.4]} 10... Qb6 {[%clk 0:04:27]} 11. Bxc6 {[%clk 0:04:04.8]}
11... bxc6 {[%clk 0:04:23.1]} 12. Na4 {[%clk 0:04:01.5]} 12... Qa5 {[%clk
0:04:15.4]} 13. c3 {[%clk 0:04:00.1]} 13... Ne4 {[%clk 0:03:44.5]} 14. b4 {[%clk
0:03:28.7]} 14... Qb5 {[%clk 0:03:39.8]} 15. Qc2 {[%clk 0:03:23.2]} 15... Rfc8
{[%clk 0:03:25.1]} 16. Ne5 {[%clk 0:03:16.6]} 16... Be8 {[%clk 0:03:21.2]} 17.
f3 {[%clk 0:03:11.1]} 17... Nd6 {[%clk 0:03:18]} 18. Nc5 {[%clk 0:03:09.1]}
18... a5 {[%clk 0:02:54.2]} 19. Reb1 {[%clk 0:03:05.2]} 19... a4 {[%clk
0:02:51.6]} 20. Re1 {[%clk 0:03:01.6]} 20... Nc4 {[%clk 0:02:39.8]} 21. Nxc4
{[%clk 0:02:54.1]} 21... Qxc4 {[%clk 0:02:38]} 22. Re2 {[%clk 0:02:42.4]} 22...
Bxc5 {[%clk 0:02:30.9]} 23. bxc5 {[%clk 0:02:35.5]} 23... f6 {[%clk 0:02:28.9]}
24. Rxe6 {[%clk 0:02:26.5]} 24... Bg6 {[%clk 0:02:26.6]} 25. Qd2 {[%clk
0:02:22.6]} 25... Ra7 {[%clk 0:02:16.8]} 26. Qb2 {[%clk 0:02:02.5]} 26... Qb3
{[%clk 0:02:07.1]} 27. Qxb3 {[%clk 0:01:47]} 27... axb3 {[%clk 0:02:07]} 28. Re2
{[%clk 0:01:46]} 28... Bc2 {[%clk 0:01:50.3]} 29. Bc1 {[%clk 0:01:43.3]} 29...
Kf7 {[%clk 0:01:42.6]} 30. Bb2 {[%clk 0:01:42.3]} 30... Re8 {[%clk 0:01:31.3]}
31. Rae1 {[%clk 0:01:40.9]} 31... Rxe2 {[%clk 0:01:25]} 32. Rxe2 {[%clk
0:01:40.8]} 32... Re7 {[%clk 0:01:15]} 33. Kf2 {[%clk 0:01:21.3]} 33... Rxe2+
{[%clk 0:01:12.9]} 34. Kxe2 {[%clk 0:01:20.2]} 34... Ke6 {[%clk 0:01:12.6]} 35.
g3 {[%clk 0:01:18.4]} 35... Kd7 {[%clk 0:01:11]} 36. Ke3 {[%clk 0:01:16.2]}
36... Kc7 {[%clk 0:01:08.2]} 37. g4 {[%clk 0:01:11.3]} 37... g5 {[%clk
0:01:04.5]} 38. f4 {[%clk 0:01:08.7]} 38... h6 {[%clk 0:01:02.6]} 39. fxg5
{[%clk 0:01:07.8]} 39... fxg5 {[%clk 0:01:00.7]} 40. Ke2 {[%clk 0:01:04.1]}
40... Kb7 {[%clk 0:00:59.5]} 41. Kf2 {[%clk 0:00:41]} 41... Ka6 {[%clk
0:00:57.6]} 42. Kg3 {[%clk 0:00:40.4]} 42... Kb5 {[%clk 0:00:56.3]} 43. h4
{[%clk 0:00:40]} 43... Kc4 {[%clk 0:00:39]} 44. hxg5 {[%clk 0:00:37.8]} 44...
hxg5 {[%clk 0:00:37.3]} 45. Kf3 {[%clk 0:00:37]} 45... Bd1+ {[%clk 0:00:32.1]}
46. Kg3 {[%clk 0:00:35.7]} 46... Kd3 {[%clk 0:00:31.3]} 47. a4 {[%clk
0:00:24.9]} 47... Kc2 {[%clk 0:00:29.9]} 48. Ba3 {[%clk 0:00:24]} 48... b2
{[%clk 0:00:25.9]} 49. Bxb2 {[%clk 0:00:22.7]} 49... Kxb2 {[%clk 0:00:25.5]} 50.
a5 {[%clk 0:00:22.6]} 50... Be2 {[%clk 0:00:24.4]} 51. Kf2 {[%clk 0:00:21.5]}
51... Ba6 {[%clk 0:00:23.1]} 52. Ke3 {[%clk 0:00:21]} 52... Kxc3 {[%clk
0:00:21.6]} 53. Kf3 {[%clk 0:00:18.4]} 53... Kxd4 {[%clk 0:00:20.1]} 54. Kg3
{[%clk 0:00:16.7]} 54... Kxc5 {[%clk 0:00:19.3]} 55. Kf2 {[%clk 0:00:15.7]}
55... Kb4 {[%clk 0:00:18.9]} 56. Ke3 {[%clk 0:00:15.6]} 56... Kxa5 {[%clk
0:00:17.8]} 57. Kd4 {[%clk 0:00:14.9]} 57... Kb6 {[%clk 0:00:17.4]} 58. Kc3
{[%clk 0:00:13.9]} 58... Be2 {[%clk 0:00:16]} 59. Kd4 {[%clk 0:00:13.3]} 59...
Bxg4 {[%clk 0:00:15.9]} 60. Ke5 {[%clk 0:00:12.8]} 60... Be2 {[%clk 0:00:14.5]}
61. Kf6 {[%clk 0:00:12.7]} 61... c5 {[%clk 0:00:13.5]} 62. Kxg5 {[%clk
0:00:12.6]} 62... c4 {[%clk 0:00:13]} 0-1

[Event "Live Chess"]
[Site "Chess.com"]
[Date "2024.06.02"]
[Round "-"]
[White "LL220284LL"]
[Black "NottheBishopSacrifice"]
[Result "0-1"]
[WhiteElo "2501"]
[BlackElo "2304"]
[TimeControl "300"]
[EndTime "16:09:59 PDT"]
[Termination "NottheBishopSacrifice won by resignation"]

1. g3 {[%clk 0:04:56]} 1... d5 {[%clk 0:04:58.4]} 2. Bg2 {[%clk 0:04:42.9]} 2...
c5 {[%clk 0:04:57.5]} 3. Nf3 {[%clk 0:04:42.4]} 3... Nc6 {[%clk 0:04:56.5]} 4.
O-O {[%clk 0:04:42]} 4... e5 {[%clk 0:04:55.2]} 5. d3 {[%clk 0:04:39.8]} 5...
Be7 {[%clk 0:04:54]} 6. b3 {[%clk 0:04:38.8]} 6... h5 {[%clk 0:04:51.3]} 7. Bb2
{[%clk 0:04:37.6]} 7... f6 {[%clk 0:04:49.1]} 8. Nbd2 {[%clk 0:04:33.9]} 8...
Nh6 {[%clk 0:04:47]} 9. Nh4 {[%clk 0:04:30.4]} 9... Be6 {[%clk 0:04:40]} 10. Ng6
{[%clk 0:04:27.5]} 10... Rh7 {[%clk 0:04:38.9]} 11. Nxe7 {[%clk 0:04:26.3]}
11... Qxe7 {[%clk 0:04:38.7]} 12. c4 {[%clk 0:04:25]} 12... dxc4 {[%clk
0:04:34]} 13. Nxc4 {[%clk 0:04:20]} 13... Nf5 {[%clk 0:04:30.4]} 14. Qd2 {[%clk
0:04:12.2]} 14... Kf7 {[%clk 0:04:26.1]} 15. Rac1 {[%clk 0:04:06.4]} 15... h4
{[%clk 0:04:22.3]} 16. Ne3 {[%clk 0:04:02.5]} 16... Ncd4 {[%clk 0:04:14.7]} 17.
Nxf5 {[%clk 0:03:58.9]} 17... Bxf5 {[%clk 0:04:10.4]} 18. Ba3 {[%clk 0:03:50.3]}
18... hxg3 {[%clk 0:03:56.8]} 19. Bxc5 {[%clk 0:03:41.7]} 19... gxh2+ {[%clk
0:03:51.1]} 20. Kh1 {[%clk 0:03:40.4]} 20... Qe6 {[%clk 0:03:49.7]} 21. Bxd4
{[%clk 0:03:36.8]} 21... exd4 {[%clk 0:03:47.8]} 22. Rc7+ {[%clk 0:03:34]} 22...
Kg6 {[%clk 0:03:44.3]} 23. Qf4 {[%clk 0:03:20.6]} 23... Bh3 {[%clk 0:03:36.5]}
24. Qg3+ {[%clk 0:03:15.5]} 24... Qg4 {[%clk 0:03:34.7]} 25. Rxb7 {[%clk
0:02:56.6]} 25... Qxg3 {[%clk 0:03:25]} 26. fxg3 {[%clk 0:02:54.5]} 26... Bxg2+
{[%clk 0:03:24.6]} 27. Kxg2 {[%clk 0:02:54.3]} 27... Re8 {[%clk 0:03:23]} 28.
Kh1 {[%clk 0:02:46.5]} 28... Rxe2 {[%clk 0:03:20.9]} 29. Rxa7 {[%clk 0:02:37.8]}
29... Rh3 {[%clk 0:03:17]} 30. Ra4 {[%clk 0:02:33.5]} 30... Rxg3 {[%clk
0:03:14.6]} 31. Rxd4 {[%clk 0:02:31.6]} 31... f5 {[%clk 0:03:11.7]} 32. Rdf4
{[%clk 0:02:25.4]} 32... Rxa2 {[%clk 0:03:07.2]} 33. R4f2 {[%clk 0:02:05.6]}
33... Rxf2 {[%clk 0:03:04.7]} 34. Rxf2 {[%clk 0:02:05.5]} 34... Rxd3 {[%clk
0:03:03.6]} 35. Rb2 {[%clk 0:02:04.7]} 35... Rd5 {[%clk 0:02:57.9]} 36. b4
{[%clk 0:02:03.2]} 36... Rb5 {[%clk 0:02:56.5]} 37. Kxh2 {[%clk 0:02:02.8]}
37... Kf6 {[%clk 0:02:55.8]} 38. Kg3 {[%clk 0:02:02.3]} 38... g5 {[%clk
0:02:55.4]} 39. Kf3 {[%clk 0:02:01.6]} 39... Ke5 {[%clk 0:02:54]} 40. Ke3 {[%clk
0:02:00.1]} 40... f4+ {[%clk 0:02:52.6]} 41. Kf3 {[%clk 0:01:59]} 41... Kf5
{[%clk 0:02:52.3]} 42. Rb1 {[%clk 0:01:53]} 42... g4+ {[%clk 0:02:50.7]} 43. Ke2
{[%clk 0:01:52.9]} 43... Ke4 {[%clk 0:02:49.3]} 44. Kf2 {[%clk 0:01:51.3]} 44...
Kf5 {[%clk 0:02:43.5]} 45. Ke2 {[%clk 0:01:48.5]} 45... f3+ {[%clk 0:02:42.5]}
46. Ke3 {[%clk 0:01:47.2]} 46... Re5+ {[%clk 0:02:41.6]} 47. Kf2 {[%clk
0:01:45.4]} 47... Kf4 {[%clk 0:02:40.5]} 48. b5 {[%clk 0:01:43.3]} 48... g3+
{[%clk 0:02:39.4]} 49. Kg1 {[%clk 0:01:38.4]} 49... f2+ {[%clk 0:02:32.4]} 50.
Kg2 {[%clk 0:01:35.1]} 50... Re1 {[%clk 0:02:31.1]} 51. Rb4+ {[%clk 0:01:28.8]}
51... Ke5 {[%clk 0:02:29.6]} 0-1

[Event "Live Chess"]
[Site "Chess.com"]
[Date "2024.06.02"]
[Round "-"]
[White "Queensandpawns"]
[Black "upoe610"]
[Result "0-1"]
[WhiteElo "2310"]
[BlackElo "2196"]
[TimeControl "300"]
[EndTime "16:10:14 PDT"]
[Termination "upoe610 won by resignation"]

1. e4 {[%clk 0:04:58.3]} 1... e5 {[%clk 0:04:58.5]} 2. d4 {[%clk 0:04:56.9]}
2... exd4 {[%clk 0:04:57.5]} 3. c3 {[%clk 0:04:56.8]} 3... Qe7 {[%clk
0:04:56.1]} 4. Bd3 {[%clk 0:04:53.4]} 4... d5 {[%clk 0:04:55.2]} 5. cxd4 {[%clk
0:04:43.9]} 5... dxe4 {[%clk 0:04:53.5]} 6. Bc2 {[%clk 0:04:43.8]} 6... Nf6
{[%clk 0:04:52.2]} 7. Nc3 {[%clk 0:04:42.6]} 7... Nc6 {[%clk 0:04:51.3]} 8. Bg5
{[%clk 0:04:42]} 8... Bf5 {[%clk 0:04:48.4]} 9. Nd5 {[%clk 0:04:40.7]} 9... Qd6
{[%clk 0:04:42.6]} 10. Ne3 {[%clk 0:04:30.1]} 10... Bg6 {[%clk 0:04:40.8]} 11.
Ne2 {[%clk 0:04:28.1]} 11... Be7 {[%clk 0:04:38.8]} 12. Bf4 {[%clk 0:04:22]}
12... Qd7 {[%clk 0:04:35.4]} 13. d5 {[%clk 0:04:20.2]} 13... Nb4 {[%clk
0:04:28.8]} 14. Bb3 {[%clk 0:04:17.1]} 14... Nd3+ {[%clk 0:04:21.9]} 15. Kf1
{[%clk 0:04:14.4]} 15... Nxf4 {[%clk 0:04:19.1]} 16. Nxf4 {[%clk 0:04:12.5]}
16... O-O {[%clk 0:04:17.7]} 17. h4 {[%clk 0:04:11]} 17... Bd6 {[%clk
0:04:11.9]} 18. Nxg6 {[%clk 0:04:01.5]} 18... fxg6 {[%clk 0:04:10.7]} 19. Rc1
{[%clk 0:03:56.9]} 19... Kh8 {[%clk 0:04:09.3]} 20. Kg1 {[%clk 0:03:47.3]} 20...
Nh5 {[%clk 0:04:07.9]} 21. Qg4 {[%clk 0:03:43]} 21... Qf7 {[%clk 0:03:34.1]} 22.
Rf1 {[%clk 0:03:39.3]} 22... Rae8 {[%clk 0:03:31.8]} 23. Bd1 {[%clk 0:03:34.6]}
23... Qf4 {[%clk 0:03:27.7]} 24. Qd7 {[%clk 0:03:29.2]} 24... Ng3 {[%clk
0:03:13.2]} 0-1

[Event "Live Chess"]
[Site "Chess.com"]
[Date "2024.06.02"]
[Round "-"]
[White "TheSmoulderingMaster"]
[Black "NebodarMatevich"]
[Result "1-0"]
[WhiteElo "1749"]
[BlackElo "1562"]
[TimeControl "300"]
[EndTime "16:10:32 PDT"]
[Termination "TheSmoulderingMaster won by resignation"]

1. e4 {[%clk 0:04:56.8]} 1... d5 {[%clk 0:04:59.4]} 2. exd5 {[%clk 0:04:55.8]}
2... Qxd5 {[%clk 0:04:59.3]} 3. Nc3 {[%clk 0:04:54.9]} 3... Qd6 {[%clk
0:04:58.7]} 4. Nf3 {[%clk 0:04:53.7]} 4... Nf6 {[%clk 0:04:57.7]} 5. Be2 {[%clk
0:04:52.4]} 5... a6 {[%clk 0:04:54.3]} 6. d4 {[%clk 0:04:50.8]} 6... Bf5 {[%clk
0:04:52.6]} 7. O-O {[%clk 0:04:49.3]} 7... Nc6 {[%clk 0:04:52.2]} 8. Bg5 {[%clk
0:04:42.6]} 8... O-O-O {[%clk 0:04:51.2]} 9. Qd2 {[%clk 0:04:37.6]} 9... Nxd4
{[%clk 0:04:49.9]} 10. Nxd4 {[%clk 0:04:35.5]} 10... Qxd4 {[%clk 0:04:49.5]} 11.
Qc1 {[%clk 0:04:31.5]} 11... Qe5 {[%clk 0:04:40.1]} 12. Re1 {[%clk 0:04:25.9]}
12... Qc5 {[%clk 0:04:31.4]} 13. Bf3 {[%clk 0:04:21.7]} 13... e6 {[%clk
0:04:25.4]} 14. Qf4 {[%clk 0:04:14]} 14... Bd6 {[%clk 0:04:18.9]} 15. Qa4 {[%clk
0:04:12.4]} 15... h6 {[%clk 0:04:10.2]} 16. Bh4 {[%clk 0:04:06.4]} 16... g5
{[%clk 0:04:06.4]} 17. Bg3 {[%clk 0:04:05.3]} 17... Bxg3 {[%clk 0:04:04.6]} 18.
hxg3 {[%clk 0:04:05.2]} 18... g4 {[%clk 0:04:01.2]} 19. Be2 {[%clk 0:03:58.7]}
19... Ne4 {[%clk 0:03:57.5]} 20. Nxe4 {[%clk 0:03:56.2]} 20... Bxe4 {[%clk
0:03:52.1]} 21. Qxe4 {[%clk 0:03:55.3]} 21... h5 {[%clk 0:03:44]} 22. Rad1
{[%clk 0:03:52.6]} 22... Rde8 {[%clk 0:03:26.2]} 23. Qf4 {[%clk 0:03:48.8]}
23... f5 {[%clk 0:03:22]} 24. b3 {[%clk 0:03:43.9]} 24... h4 {[%clk 0:03:21.2]}
25. Bc4 {[%clk 0:03:34.6]} 25... h3 {[%clk 0:03:18]} 26. Rxe6 {[%clk 0:03:29.6]}
26... hxg2 {[%clk 0:03:13.5]} 27. Rxe8+ {[%clk 0:03:21.6]} 27... Rxe8 {[%clk
0:03:12.7]} 28. Kxg2 {[%clk 0:03:20.4]} 28... Qc6+ {[%clk 0:03:08.6]} 29. Bd5
{[%clk 0:03:17.2]} 29... Qxc2 {[%clk 0:03:02.2]} 30. Rc1 {[%clk 0:03:12.6]} 1-0